[Event "Titled Tuesday Blitz April 19 Early 2022"]
[White "Gabdrakhmanov, Azat"]
[Black "Ocelak, Jakub"]
[WhiteFideId "34189197"]
[BlackFideId "23707933"]
[WhiteElo "2279"]
[BlackElo "2048"]
[Result "1-0"]
[Round "06"]
[TimeControl "180+1"]
[Date "2022.04.19"]
[WhiteClock "0:00:11"]
[BlackClock "0:00:02"]

1. e4 {[%clk 0:03:00]}  d5 {[%clk 0:02:53]} 2. exd5 {[%clk 0:02:58]}  Nf6 {[%clk 0:02:53]} 3. d4 {[%clk 0:02:52]}  Nxd5 {[%clk 0:02:52]} 4. Nf3 {[%clk 0:02:52]}  g6 {[%clk 0:02:52]} 5. Be2 {[%clk 0:02:48]}  Bg7 {[%clk 0:02:51]} 6. O-O {[%clk 0:02:49]}  O-O {[%clk 0:02:51]} 7. Re1 {[%clk 0:02:37]}  Nc6 {[%clk 0:02:50]} 8. c3 {[%clk 0:02:37]}  Bg4 {[%clk 0:02:48]} 9. h3 {[%clk 0:02:37]}  Bxf3 {[%clk 0:02:37]} 10. Bxf3 {[%clk 0:02:38]}  h6 {[%clk 0:02:24]} 11. Nd2 {[%clk 0:02:36]}  e5 {[%clk 0:02:22]} 12. Qb3 {[%clk 0:02:19]}  Nf4 {[%clk 0:02:11]} 13. d5 {[%clk 0:02:18]}  Na5 {[%clk 0:02:05]} 14. Qa4 {[%clk 0:02:07]}  b6 {[%clk 0:01:58]} 15. Nf1 {[%clk 0:01:49]}  Qg5 {[%clk 0:01:53]} 16. Bxf4 {[%clk 0:01:44]}  exf4 {[%clk 0:01:49]} 17. Nd2 {[%clk 0:01:27]}  Rad8 {[%clk 0:01:37]} 18. Rad1 {[%clk 0:01:26]}  Nb7 {[%clk 0:01:22]} 19. Qxa7 {[%clk 0:01:19]}  Rb8 {[%clk 0:01:13]} 20. Ne4 {[%clk 0:01:13]}  Qd8 {[%clk 0:01:13]} 21. Qa4 {[%clk 0:01:04]}  Nd6 {[%clk 0:01:12]} 22. Nxd6 {[%clk 0:01:03]}  Qxd6 {[%clk 0:01:13]} 23. Qc6 {[%clk 0:01:02]}  Ra8 {[%clk 0:01:06]} 24. a3 {[%clk 0:01:01]}  Bf6 {[%clk 0:00:55]} 25. Re4 {[%clk 0:00:58]}  g5 {[%clk 0:00:52]} 26. Rc4 {[%clk 0:00:51]}  Qxc6 {[%clk 0:00:40]} 27. Rxc6 {[%clk 0:00:48]}  Be5 {[%clk 0:00:36]} 28. Rxh6 {[%clk 0:00:45]}  Rae8 {[%clk 0:00:30]} 29. h4 {[%clk 0:00:41]}  Kg7 {[%clk 0:00:20]} 30. hxg5 {[%clk 0:00:36]}  Rh8 {[%clk 0:00:20]} 31. Rxh8 {[%clk 0:00:35]}  Rxh8 {[%clk 0:00:21]} 32. Be4 {[%clk 0:00:31]}  Rh5 {[%clk 0:00:20]} 33. Bf3 {[%clk 0:00:24]}  Rxg5 {[%clk 0:00:20]} 34. Re1 {[%clk 0:00:25]}  Bd6 {[%clk 0:00:19]} 35. Re8 {[%clk 0:00:23]}  Re5 {[%clk 0:00:18]} 36. Rxe5 {[%clk 0:00:21]}  Bxe5 {[%clk 0:00:19]} 37. Kf1 {[%clk 0:00:22]}  Kf6 {[%clk 0:00:18]} 38. Be4 {[%clk 0:00:21]}  Ke7 {[%clk 0:00:14]} 39. Ke2 {[%clk 0:00:21]}  Kd6 {[%clk 0:00:14]} 40. Kd3 {[%clk 0:00:22]}  Kc5 {[%clk 0:00:14]} 41. Bf3 {[%clk 0:00:21]}  f5 {[%clk 0:00:10]} 42. a4 {[%clk 0:00:21]}  Bf6 {[%clk 0:00:07]} 43. b4+ {[%clk 0:00:21]}  Kd6 {[%clk 0:00:07]} 44. c4 {[%clk 0:00:20]}  Bb2 {[%clk 0:00:05]} 45. Bh5 {[%clk 0:00:17]}  Ba3 {[%clk 0:00:05]} 46. Kc3 {[%clk 0:00:17]}  Bc1 {[%clk 0:00:02]} 47. f3 {[%clk 0:00:17]}  Be3 {[%clk 0:00:02]} 48. Bf7 {[%clk 0:00:17]}  Ke5 {[%clk 0:00:02]} 49. Be6 {[%clk 0:00:17]}  Bd4+ {[%clk 0:00:02]} 50. Kd3 {[%clk 0:00:18]}  Bf2 {[%clk 0:00:02]} 51. Bc8 {[%clk 0:00:17]}  Be1 {[%clk 0:00:02]} 52. c5 {[%clk 0:00:11]}  Bxb4 {[%clk 0:00:01]} 53. cxb6 {[%clk 0:00:11]}  cxb6 {[%clk 0:00:02]} 54. Kc4 {[%clk 0:00:11]} 1-0


[Site "https://www.chess.com"]

[Event "Titled Tuesday Blitz April 19 Early 2022"]
[White "Grischuk, Alexander"]
[Black "Pranav, V"]
[WhiteFideId "4126025"]
[BlackFideId "25060783"]
[WhiteElo "2762"]
[BlackElo "2349"]
[Result "1/2-1/2"]
[Round "06"]
[TimeControl "180+1"]
[Date "2022.04.19"]
[WhiteClock "0:00:04"]
[BlackClock "0:00:03"]

1. d4 {[%clk 0:03:00]}  Nf6 {[%clk 0:02:59]} 2. c4 {[%clk 0:03:00]}  e6 {[%clk 0:02:59]} 3. Nc3 {[%clk 0:03:01]}  Bb4 {[%clk 0:02:59]} 4. e3 {[%clk 0:03:01]}  O-O {[%clk 0:02:59]} 5. a3 {[%clk 0:03:01]}  Bxc3+ {[%clk 0:02:58]} 6. bxc3 {[%clk 0:03:02]}  b6 {[%clk 0:02:58]} 7. Bd3 {[%clk 0:03:01]}  d6 {[%clk 0:02:58]} 8. e4 {[%clk 0:02:56]}  e5 {[%clk 0:02:50]} 9. Ne2 {[%clk 0:02:49]}  c5 {[%clk 0:02:47]} 10. d5 {[%clk 0:02:45]}  Nbd7 {[%clk 0:02:37]} 11. h4 {[%clk 0:02:33]}  Re8 {[%clk 0:02:35]} 12. f3 {[%clk 0:02:30]}  a6 {[%clk 0:02:22]} 13. a4 {[%clk 0:02:27]}  h5 {[%clk 0:02:11]} 14. Bg5 {[%clk 0:02:23]}  Nf8 {[%clk 0:02:06]} 15. Ng3 {[%clk 0:02:16]}  N8h7 {[%clk 0:02:05]} 16. Qd2 {[%clk 0:02:09]}  Qc7 {[%clk 0:01:53]} 17. Kf2 {[%clk 0:01:15]}  Bd7 {[%clk 0:01:51]} 18. Rhb1 {[%clk 0:01:15]}  Reb8 {[%clk 0:01:49]} 19. Bxf6 {[%clk 0:01:05]}  Nxf6 {[%clk 0:01:49]} 20. Qg5 {[%clk 0:01:05]}  b5 {[%clk 0:01:41]} 21. axb5 {[%clk 0:01:04]}  axb5 {[%clk 0:01:42]} 22. Rxa8 {[%clk 0:01:04]}  Rxa8 {[%clk 0:01:42]} 23. cxb5 {[%clk 0:01:05]}  c4 {[%clk 0:01:23]} 24. Be2 {[%clk 0:01:04]}  Rb8 {[%clk 0:01:13]} 25. Rb4 {[%clk 0:00:42]}  Bxb5 {[%clk 0:00:46]} 26. Nf5 {[%clk 0:00:41]}  Ne8 {[%clk 0:00:46]} 27. Qxh5 {[%clk 0:00:20]}  Qa7+ {[%clk 0:00:35]} 28. Kg3 {[%clk 0:00:18]}  Qa1 {[%clk 0:00:30]} 29. Ne7+ {[%clk 0:00:16]}  Kf8 {[%clk 0:00:28]} 30. Nc6 {[%clk 0:00:14]}  Bxc6 {[%clk 0:00:16]} 31. Rxb8 {[%clk 0:00:15]}  Bd7 {[%clk 0:00:16]} 32. Kh2 {[%clk 0:00:05]}  Qxc3 {[%clk 0:00:15]} 33. Qg5 {[%clk 0:00:04]}  Qe1 {[%clk 0:00:15]} 34. Bxc4 {[%clk 0:00:03]}  f6 {[%clk 0:00:15]} 35. Qg3 {[%clk 0:00:03]}  Qc1 {[%clk 0:00:15]} 36. Bb5 {[%clk 0:00:03]}  Qc7 {[%clk 0:00:12]} 37. Rxe8+ {[%clk 0:00:02]}  Bxe8 {[%clk 0:00:11]} 38. Bxe8 {[%clk 0:00:03]}  Kxe8 {[%clk 0:00:12]} 39. Qg6+ {[%clk 0:00:03]}  Kf8 {[%clk 0:00:13]} 40. h5 {[%clk 0:00:04]}  Qc1 {[%clk 0:00:13]} 41. Qg4 {[%clk 0:00:04]}  Kg8 {[%clk 0:00:06]} 42. Qe6+ {[%clk 0:00:03]}  Kh7 {[%clk 0:00:07]} 43. Qf5+ {[%clk 0:00:04]}  Kh8 {[%clk 0:00:07]} 44. Qg4 {[%clk 0:00:04]}  Kh7 {[%clk 0:00:05]} 45. Qg3 {[%clk 0:00:05]}  Kh8 {[%clk 0:00:05]} 46. Qh4 {[%clk 0:00:04]}  Qh6 {[%clk 0:00:05]} 47. Qg4 {[%clk 0:00:04]}  Qc1 {[%clk 0:00:06]} 48. Kh3 {[%clk 0:00:04]}  Qh1+ {[%clk 0:00:06]} 49. Kg3 {[%clk 0:00:04]}  Qe1+ {[%clk 0:00:06]} 50. Kh2 {[%clk 0:00:05]}  Qc1 {[%clk 0:00:07]} 51. Qf5 {[%clk 0:00:05]}  Qh6 {[%clk 0:00:03]} 52. Qg6 {[%clk 0:00:04]}  Qc1 {[%clk 0:00:03]} 53. Kh3 {[%clk 0:00:05]}  Qh1+ {[%clk 0:00:03]} 54. Kg3 {[%clk 0:00:05]}  Qc1 {[%clk 0:00:03]} 55. h6 {[%clk 0:00:04]}  Qf4+ {[%clk 0:00:03]} 56. Kh3 {[%clk 0:00:04]}  gxh6 {[%clk 0:00:03]} 57. Qe8+ {[%clk 0:00:03]}  Kg7 {[%clk 0:00:03]} 58. Qe7+ {[%clk 0:00:04]}  Kg6 {[%clk 0:00:04]} 59. Qe8+ {[%clk 0:00:04]}  Kg7 {[%clk 0:00:04]} 60. Qd7+ {[%clk 0:00:04]}  Kg6 {[%clk 0:00:03]} 61. Qg4+ {[%clk 0:00:03]}  Qxg4+ {[%clk 0:00:03]} 62. Kxg4 {[%clk 0:00:03]}  h5+ {[%clk 0:00:03]} 63. Kh4 {[%clk 0:00:04]}  Kh6 {[%clk 0:00:04]} 64. g3 {[%clk 0:00:03]}  Kg6 {[%clk 0:00:04]} 65. g4 {[%clk 0:00:03]}  hxg4 {[%clk 0:00:05]} 66. fxg4 {[%clk 0:00:02]}  Kh6 {[%clk 0:00:05]} 67. Kh3 {[%clk 0:00:03]}  Kg5 {[%clk 0:00:04]} 68. Kg3 {[%clk 0:00:03]}  Kg6 {[%clk 0:00:04]} 69. Kh4 {[%clk 0:00:03]}  Kh6 {[%clk 0:00:05]} 70. Kh3 {[%clk 0:00:04]}  Kg6 {[%clk 0:00:03]} 71. Kh4 {[%clk 0:00:04]} 1/2-1/2


[Site "https://www.chess.com"]

[Event "Titled Tuesday Blitz April 19 Early 2022"]
[White "Gu, Xiaobing"]
[Black "Shohat, Yotam"]
[WhiteFideId "8602611"]
[BlackFideId "2813955"]
[WhiteElo "2174"]
[BlackElo "2119"]
[Result "1-0"]
[Round "06"]
[TimeControl "180+1"]
[Date "2022.04.19"]
[WhiteClock "0:00:09"]
[BlackClock "0:00:01"]

1. e4 {[%clk 0:03:00]}  c5 {[%clk 0:02:57]} 2. Nf3 {[%clk 0:03:00]}  Nc6 {[%clk 0:02:55]} 3. Bb5 {[%clk 0:02:58]}  Nf6 {[%clk 0:02:54]} 4. Bxc6 {[%clk 0:02:48]}  dxc6 {[%clk 0:02:53]} 5. d3 {[%clk 0:02:46]}  g6 {[%clk 0:02:53]} 6. Nc3 {[%clk 0:02:43]}  Bg7 {[%clk 0:02:53]} 7. h3 {[%clk 0:02:37]}  O-O {[%clk 0:02:53]} 8. Be3 {[%clk 0:02:37]}  Nd7 {[%clk 0:02:52]} 9. Qd2 {[%clk 0:02:37]}  Re8 {[%clk 0:02:51]} 10. O-O {[%clk 0:02:31]}  e5 {[%clk 0:02:50]} 11. Nh2 {[%clk 0:02:27]}  b6 {[%clk 0:02:43]} 12. f4 {[%clk 0:02:00]}  exf4 {[%clk 0:02:42]} 13. Bxf4 {[%clk 0:02:00]}  Nf8 {[%clk 0:02:38]} 14. Rae1 {[%clk 0:01:57]}  Ne6 {[%clk 0:02:36]} 15. Bh6 {[%clk 0:01:55]}  Bh8 {[%clk 0:02:19]} 16. e5 {[%clk 0:01:47]}  Nd4 {[%clk 0:01:59]} 17. Ne4 {[%clk 0:01:23]}  Bf5 {[%clk 0:01:48]} 18. Bg5 {[%clk 0:01:10]}  Qc7 {[%clk 0:00:33]} 19. Nf6+ {[%clk 0:01:09]}  Kf8 {[%clk 0:00:29]} 20. Nxe8 {[%clk 0:01:05]}  Rxe8 {[%clk 0:00:28]} 21. Bf6 {[%clk 0:00:59]}  Bg7 {[%clk 0:00:13]} 22. Qg5 {[%clk 0:00:53]}  Nxc2 {[%clk 0:00:07]} 23. Bxg7+ {[%clk 0:00:27]}  Kxg7 {[%clk 0:00:07]} 24. Re2 {[%clk 0:00:22]}  Nd4 {[%clk 0:00:07]} 25. Ref2 {[%clk 0:00:22]}  Qxe5 {[%clk 0:00:06]} 26. Ng4 {[%clk 0:00:18]}  Qe7 {[%clk 0:00:06]} 27. Qh6+ {[%clk 0:00:18]}  Kg8 {[%clk 0:00:07]} 28. Kh2 {[%clk 0:00:15]}  Bxg4 {[%clk 0:00:04]} 29. Rxf7 {[%clk 0:00:14]}  Qe5+ {[%clk 0:00:04]} 30. R1f4 {[%clk 0:00:12]}  Qxf4+ {[%clk 0:00:03]} 31. Qxf4 {[%clk 0:00:10]}  Bf5 {[%clk 0:00:03]} 32. Qc7 {[%clk 0:00:10]}  Ne6 {[%clk 0:00:03]} 33. Qd7 {[%clk 0:00:09]}  Rd8 {[%clk 0:00:02]} 34. Qxa7 {[%clk 0:00:08]}  Rxd3 {[%clk 0:00:02]} 35. Rxh7 {[%clk 0:00:09]}  Rd8 {[%clk 0:00:01]} 36. Qf7# {[%clk 0:00:09]} 1-0


[Site "https://www.chess.com"]

[Event "Titled Tuesday Blitz April 19 Early 2022"]
[White "Hua, Lefong"]
[Black "Kovalenko, Igor"]
[WhiteFideId "2602253"]
[BlackFideId "14117908"]
[WhiteElo "2591"]
[BlackElo "2560"]
[Result "1-0"]
[Round "06"]
[TimeControl "180+1"]
[Date "2022.04.19"]
[WhiteClock "0:00:09"]
[BlackClock "0:00:18"]

1. d4 {[%clk 0:03:00]}  Nf6 {[%clk 0:02:57]} 2. c4 {[%clk 0:03:01]}  e6 {[%clk 0:02:58]} 3. Nc3 {[%clk 0:03:01]}  Bb4 {[%clk 0:02:57]} 4. f3 {[%clk 0:03:01]}  c5 {[%clk 0:02:55]} 5. d5 {[%clk 0:03:01]}  d6 {[%clk 0:02:55]} 6. e4 {[%clk 0:02:59]}  Bxc3+ {[%clk 0:02:45]} 7. bxc3 {[%clk 0:02:59]}  h6 {[%clk 0:02:45]} 8. Ne2 {[%clk 0:02:57]}  b6 {[%clk 0:02:44]} 9. Nf4 {[%clk 0:02:55]}  e5 {[%clk 0:02:42]} 10. Ne2 {[%clk 0:02:54]}  Nbd7 {[%clk 0:02:39]} 11. Ng3 {[%clk 0:02:54]}  Nf8 {[%clk 0:02:40]} 12. Bd3 {[%clk 0:02:54]}  Ng6 {[%clk 0:02:37]} 13. O-O {[%clk 0:02:53]}  Nf4 {[%clk 0:02:31]} 14. Ne2 {[%clk 0:02:49]}  g5 {[%clk 0:02:27]} 15. g3 {[%clk 0:02:48]}  Nh3+ {[%clk 0:02:23]} 16. Kg2 {[%clk 0:02:48]}  Rg8 {[%clk 0:02:22]} 17. Ng1 {[%clk 0:02:25]}  Qd7 {[%clk 0:02:19]} 18. Rb1 {[%clk 0:02:20]}  Nxg1 {[%clk 0:02:19]} 19. Kxg1 {[%clk 0:02:20]}  Qh3 {[%clk 0:02:18]} 20. Qe2 {[%clk 0:02:16]}  Bd7 {[%clk 0:02:05]} 21. Qg2 {[%clk 0:02:14]}  Qxg2+ {[%clk 0:02:05]} 22. Kxg2 {[%clk 0:02:15]}  Ba4 {[%clk 0:02:05]} 23. Rf2 {[%clk 0:02:10]}  Ke7 {[%clk 0:02:05]} 24. Bc2 {[%clk 0:02:10]}  Bxc2 {[%clk 0:02:05]} 25. Rxc2 {[%clk 0:02:10]}  g4 {[%clk 0:02:00]} 26. Re2 {[%clk 0:01:57]}  h5 {[%clk 0:01:59]} 27. f4 {[%clk 0:01:53]}  Nd7 {[%clk 0:01:53]} 28. f5 {[%clk 0:01:40]}  Nf6 {[%clk 0:01:46]} 29. a4 {[%clk 0:01:37]}  Rab8 {[%clk 0:01:25]} 30. Bd2 {[%clk 0:01:36]}  Kd7 {[%clk 0:01:20]} 31. Rb2 {[%clk 0:01:28]}  Kc7 {[%clk 0:01:21]} 32. Rb1 {[%clk 0:01:25]}  Rb7 {[%clk 0:01:20]} 33. Bc1 {[%clk 0:01:22]}  a6 {[%clk 0:01:18]} 34. Kf1 {[%clk 0:01:19]}  Rg7 {[%clk 0:01:15]} 35. Bh6 {[%clk 0:01:18]}  Rg8 {[%clk 0:01:15]} 36. Bc1 {[%clk 0:01:19]}  Rgb8 {[%clk 0:01:09]} 37. Bg5 {[%clk 0:01:10]}  Nd7 {[%clk 0:01:09]} 38. Reb2 {[%clk 0:01:07]}  Rg8 {[%clk 0:01:08]} 39. Bh4 {[%clk 0:01:04]}  f6 {[%clk 0:01:06]} 40. Ke2 {[%clk 0:01:05]}  Kd8 {[%clk 0:01:05]} 41. a5 {[%clk 0:01:00]}  Ke7 {[%clk 0:01:06]} 42. h3 {[%clk 0:00:55]}  Rgb8 {[%clk 0:01:03]} 43. hxg4 {[%clk 0:00:55]}  hxg4 {[%clk 0:01:03]} 44. Kd3 {[%clk 0:00:49]}  Kf7 {[%clk 0:01:01]} 45. Rb3 {[%clk 0:00:45]}  b5 {[%clk 0:00:59]} 46. Kc2 {[%clk 0:00:26]}  Ke7 {[%clk 0:00:41]} 47. cxb5 {[%clk 0:00:17]}  axb5 {[%clk 0:00:40]} 48. a6 {[%clk 0:00:17]}  Rb6 {[%clk 0:00:37]} 49. a7 {[%clk 0:00:17]}  Ra8 {[%clk 0:00:37]} 50. Rxb5 {[%clk 0:00:17]}  Rxb5 {[%clk 0:00:38]} 51. Rxb5 {[%clk 0:00:17]}  Rxa7 {[%clk 0:00:38]} 52. c4 {[%clk 0:00:17]}  Kd8 {[%clk 0:00:31]} 53. Rb2 {[%clk 0:00:16]}  Kc7 {[%clk 0:00:31]} 54. Kb3 {[%clk 0:00:16]}  Kb6 {[%clk 0:00:28]} 55. Ra2 {[%clk 0:00:14]}  Rb7 {[%clk 0:00:21]} 56. Kc3 {[%clk 0:00:13]}  Kc7 {[%clk 0:00:21]} 57. Ra8 {[%clk 0:00:13]}  Rb1 {[%clk 0:00:20]} 58. Rg8 {[%clk 0:00:12]}  Rc1+ {[%clk 0:00:19]} 59. Kd3 {[%clk 0:00:12]}  Rd1+ {[%clk 0:00:19]} 60. Ke3 {[%clk 0:00:12]}  Rd4 {[%clk 0:00:19]} 61. Rxg4 {[%clk 0:00:09]}  Rxc4 {[%clk 0:00:18]} 62. Rg6 {[%clk 0:00:09]}  Rd4 {[%clk 0:00:18]} 63. Bxf6 {[%clk 0:00:09]}  Nxf6 {[%clk 0:00:18]} 64. Rxf6 {[%clk 0:00:10]}  c4 {[%clk 0:00:19]} 65. Rf7+ {[%clk 0:00:11]}  Kb6 {[%clk 0:00:19]} 66. Rd7 {[%clk 0:00:11]}  c3 {[%clk 0:00:19]} 67. Rxd6+ {[%clk 0:00:11]}  Kb5 {[%clk 0:00:20]} 68. Rc6 {[%clk 0:00:12]}  Kb4 {[%clk 0:00:20]} 69. f6 {[%clk 0:00:11]}  Rd1 {[%clk 0:00:17]} 70. f7 {[%clk 0:00:09]}  Rf1 {[%clk 0:00:17]} 71. Rc7 {[%clk 0:00:09]}  Kb3 {[%clk 0:00:17]} 72. d6 {[%clk 0:00:09]}  c2 {[%clk 0:00:18]} 73. Rxc2 {[%clk 0:00:09]}  Kxc2 {[%clk 0:00:17]} 74. d7 {[%clk 0:00:09]}  Re1+ {[%clk 0:00:17]} 75. Kf2 {[%clk 0:00:09]}  Rxe4 {[%clk 0:00:17]} 76. f8=Q {[%clk 0:00:09]}  Rd4 {[%clk 0:00:18]} 77. d8=Q {[%clk 0:00:09]} 1-0


[Site "https://www.chess.com"]

[Event "Titled Tuesday Blitz April 19 Early 2022"]
[White "Jaferian, Koosha"]
[Black "Buscar, Michael"]
[WhiteFideId "12507440"]
[BlackFideId "2603616"]
[WhiteElo "2030"]
[BlackElo "2010"]
[Result "0-1"]
[Round "06"]
[TimeControl "180+1"]
[Date "2022.04.19"]
[WhiteClock "0:00:05"]
[BlackClock "0:00:10"]

1. Nf3 {[%clk 0:03:00]}  b6 {[%clk 0:02:57]} 2. g3 {[%clk 0:02:56]}  Bb7 {[%clk 0:02:58]} 3. Bg2 {[%clk 0:02:57]}  e5 {[%clk 0:02:57]} 4. O-O {[%clk 0:02:56]}  d6 {[%clk 0:02:55]} 5. c4 {[%clk 0:02:55]}  Nd7 {[%clk 0:02:55]} 6. Nc3 {[%clk 0:02:56]}  g6 {[%clk 0:02:54]} 7. b3 {[%clk 0:02:56]}  Bg7 {[%clk 0:02:55]} 8. Bb2 {[%clk 0:02:57]}  Ne7 {[%clk 0:02:52]} 9. Ne1 {[%clk 0:02:57]}  Bxg2 {[%clk 0:02:50]} 10. Nxg2 {[%clk 0:02:58]}  O-O {[%clk 0:02:50]} 11. e3 {[%clk 0:02:52]}  Nc5 {[%clk 0:02:46]} 12. d4 {[%clk 0:02:50]}  Ne6 {[%clk 0:02:42]} 13. dxe5 {[%clk 0:02:45]}  dxe5 {[%clk 0:02:39]} 14. Qc2 {[%clk 0:02:45]}  Nc6 {[%clk 0:02:29]} 15. Rad1 {[%clk 0:02:46]}  Qe7 {[%clk 0:02:29]} 16. Nd5 {[%clk 0:02:46]}  Qc5 {[%clk 0:02:24]} 17. Qc1 {[%clk 0:02:26]}  Rfd8 {[%clk 0:02:10]} 18. Rd2 {[%clk 0:02:18]}  b5 {[%clk 0:01:50]} 19. Rfd1 {[%clk 0:01:51]}  bxc4 {[%clk 0:01:22]} 20. bxc4 {[%clk 0:01:39]}  Rab8 {[%clk 0:01:20]} 21. Ba3 {[%clk 0:01:09]}  Qa5 {[%clk 0:01:19]} 22. Bb2 {[%clk 0:00:49]}  Ng5 {[%clk 0:01:16]} 23. Ne7+ {[%clk 0:00:42]}  Nxe7 {[%clk 0:01:12]} 24. Rxd8+ {[%clk 0:00:42]}  Rxd8 {[%clk 0:01:13]} 25. Rxd8+ {[%clk 0:00:42]}  Bf8 {[%clk 0:01:13]} 26. Qd1 {[%clk 0:00:35]}  Nc6 {[%clk 0:01:05]} 27. Rd5 {[%clk 0:00:25]}  Qxa2 {[%clk 0:01:02]} 28. Bxe5 {[%clk 0:00:25]}  Qxc4 {[%clk 0:00:57]} 29. Nf4 {[%clk 0:00:12]}  Qe4 {[%clk 0:00:50]} 30. Ba1 {[%clk 0:00:06]}  Nf3+ {[%clk 0:00:46]} 31. Kf1 {[%clk 0:00:07]}  Nxh2+ {[%clk 0:00:42]} 32. Kg1 {[%clk 0:00:07]}  Nf3+ {[%clk 0:00:42]} 33. Kf1 {[%clk 0:00:08]}  Nb4 {[%clk 0:00:33]} 34. Rd8 {[%clk 0:00:04]}  Nc6 {[%clk 0:00:20]} 35. Rc8 {[%clk 0:00:02]}  Nh2+ {[%clk 0:00:19]} 36. Kg1 {[%clk 0:00:02]}  Nf3+ {[%clk 0:00:18]} 37. Kf1 {[%clk 0:00:03]}  h5 {[%clk 0:00:16]} 38. Ra8 {[%clk 0:00:02]}  h4 {[%clk 0:00:14]} 39. gxh4 {[%clk 0:00:03]}  Nxh4 {[%clk 0:00:14]} 40. Qg4 {[%clk 0:00:03]}  Qh1+ {[%clk 0:00:14]} 41. Ke2 {[%clk 0:00:04]}  Qxa1 {[%clk 0:00:13]} 42. Qxh4 {[%clk 0:00:04]}  Qb2+ {[%clk 0:00:11]} 43. Kf3 {[%clk 0:00:04]}  Ne5+ {[%clk 0:00:12]} 44. Kg2 {[%clk 0:00:04]}  Qb7+ {[%clk 0:00:11]} 45. Kh2 {[%clk 0:00:04]}  Nf3+ {[%clk 0:00:10]} 46. Kg3 {[%clk 0:00:05]}  Nxh4 {[%clk 0:00:10]} 0-1


[Site "https://www.chess.com"]

[Event "Titled Tuesday Blitz April 19 Early 2022"]
[White "Janaszak, Dawid"]
[Black "Tsyhanchuk, Stanislav"]
[WhiteFideId "1119206"]
[BlackFideId "13505130"]
[WhiteElo "2199"]
[BlackElo "2078"]
[Result "1/2-1/2"]
[Round "06"]
[TimeControl "180+1"]
[Date "2022.04.19"]
[WhiteClock "0:00:13"]
[BlackClock "0:00:09"]

1. e4 {[%clk 0:03:00]}  c5 {[%clk 0:02:59]} 2. b3 {[%clk 0:03:00]}  Nc6 {[%clk 0:02:59]} 3. Bb2 {[%clk 0:02:59]}  e5 {[%clk 0:02:58]} 4. f4 {[%clk 0:02:56]}  exf4 {[%clk 0:02:56]} 5. Nf3 {[%clk 0:02:56]}  d6 {[%clk 0:02:52]} 6. Bb5 {[%clk 0:02:53]}  Nf6 {[%clk 0:02:49]} 7. O-O {[%clk 0:02:52]}  Be7 {[%clk 0:02:44]} 8. e5 {[%clk 0:02:44]}  dxe5 {[%clk 0:02:43]} 9. Nxe5 {[%clk 0:02:44]}  Bd7 {[%clk 0:02:42]} 10. Bxc6 {[%clk 0:02:37]}  Bxc6 {[%clk 0:02:41]} 11. Nxc6 {[%clk 0:02:37]}  bxc6 {[%clk 0:02:42]} 12. Rxf4 {[%clk 0:02:36]}  O-O {[%clk 0:02:40]} 13. d3 {[%clk 0:02:36]}  Nd5 {[%clk 0:02:32]} 14. Rf3 {[%clk 0:02:36]}  Bf6 {[%clk 0:02:31]} 15. Bxf6 {[%clk 0:02:27]}  Nxf6 {[%clk 0:02:32]} 16. Nd2 {[%clk 0:02:23]}  Re8 {[%clk 0:02:31]} 17. Kh1 {[%clk 0:02:18]}  Qd4 {[%clk 0:02:26]} 18. h3 {[%clk 0:02:02]}  Rad8 {[%clk 0:02:15]} 19. Nc4 {[%clk 0:02:02]}  Nd5 {[%clk 0:02:10]} 20. Qf1 {[%clk 0:01:54]}  Re7 {[%clk 0:02:01]} 21. Re1 {[%clk 0:01:53]}  Rde8 {[%clk 0:01:56]} 22. Rxe7 {[%clk 0:01:46]}  Rxe7 {[%clk 0:01:57]} 23. Nd6 {[%clk 0:01:02]}  Nf6 {[%clk 0:01:38]} 24. Nf5 {[%clk 0:01:01]}  Qe5 {[%clk 0:01:32]} 25. Nxe7+ {[%clk 0:00:59]}  Qxe7 {[%clk 0:01:33]} 26. Qf2 {[%clk 0:00:54]}  Nd5 {[%clk 0:01:30]} 27. Qg3 {[%clk 0:00:52]}  g6 {[%clk 0:01:27]} 28. c4 {[%clk 0:00:51]}  Nb4 {[%clk 0:01:19]} 29. Re3 {[%clk 0:00:51]}  Qf6 {[%clk 0:01:19]} 30. Qb8+ {[%clk 0:00:46]}  Kg7 {[%clk 0:01:19]} 31. Qe5 {[%clk 0:00:45]}  Nxa2 {[%clk 0:01:09]} 32. Qxf6+ {[%clk 0:00:30]}  Kxf6 {[%clk 0:01:10]} 33. Re8 {[%clk 0:00:31]}  Nc1 {[%clk 0:01:04]} 34. Rc8 {[%clk 0:00:31]}  Nxb3 {[%clk 0:01:02]} 35. Rxc6+ {[%clk 0:00:31]}  Ke5 {[%clk 0:00:59]} 36. Ra6 {[%clk 0:00:31]}  Kd4 {[%clk 0:00:57]} 37. Rxa7 {[%clk 0:00:30]}  Kxd3 {[%clk 0:00:57]} 38. Rxf7 {[%clk 0:00:31]}  h5 {[%clk 0:00:51]} 39. Rf6 {[%clk 0:00:30]}  g5 {[%clk 0:00:51]} 40. Rf5 {[%clk 0:00:31]}  g4 {[%clk 0:00:42]} 41. h4 {[%clk 0:00:31]}  Kxc4 {[%clk 0:00:41]} 42. Rxh5 {[%clk 0:00:31]}  Kd3 {[%clk 0:00:25]} 43. Rg5 {[%clk 0:00:30]}  c4 {[%clk 0:00:20]} 44. Rxg4 {[%clk 0:00:31]}  c3 {[%clk 0:00:20]} 45. Rg3+ {[%clk 0:00:31]}  Kd2 {[%clk 0:00:21]} 46. Rg8 {[%clk 0:00:23]}  c2 {[%clk 0:00:20]} 47. Rd8+ {[%clk 0:00:18]}  Ke3 {[%clk 0:00:18]} 48. Rc8 {[%clk 0:00:18]}  c1=Q+ {[%clk 0:00:18]} 49. Rxc1 {[%clk 0:00:18]}  Nxc1 {[%clk 0:00:19]} 50. h5 {[%clk 0:00:18]}  Ne2 {[%clk 0:00:18]} 51. h6 {[%clk 0:00:13]}  Nf4 {[%clk 0:00:18]} 52. Kh2 {[%clk 0:00:09]}  Ng6 {[%clk 0:00:17]} 53. Kg3 {[%clk 0:00:10]}  Ke4 {[%clk 0:00:15]} 54. Kg4 {[%clk 0:00:10]}  Ke5 {[%clk 0:00:16]} 55. Kg5 {[%clk 0:00:11]}  Nf8 {[%clk 0:00:13]} 56. g3 {[%clk 0:00:11]}  Ke6 {[%clk 0:00:12]} 57. g4 {[%clk 0:00:11]}  Ke5 {[%clk 0:00:10]} 58. Kh5 {[%clk 0:00:11]}  Kf6 {[%clk 0:00:10]} 59. g5+ {[%clk 0:00:12]}  Kf5 {[%clk 0:00:10]} 60. h7 {[%clk 0:00:11]}  Nxh7 {[%clk 0:00:10]} 61. g6 {[%clk 0:00:11]}  Nf6+ {[%clk 0:00:10]} 62. Kh6 {[%clk 0:00:12]}  Ke6 {[%clk 0:00:09]} 63. g7 {[%clk 0:00:12]}  Kf7 {[%clk 0:00:09]} 64. g8=Q+ {[%clk 0:00:13]}  Nxg8+ {[%clk 0:00:09]} 1/2-1/2


[Site "https://www.chess.com"]